Cogmind - Beta 13 @@@ ROGUE MODE // 2024.07.06 @ 20:19:03 Player: APerTAS Result: Destroyed by G-34 Mercenary with Small Laser Performance ------------- Evolutions (1) 500 Regions Visited (3) 600 Robots Destroyed (18) 90 Value Destroyed (549) 549 Prototype IDs (1) 20 Alien Tech Used (0) 0 Bonus (0) 0 TOTAL SCORE: 1759 Bonus ------- None Cogmind --------- Core Integrity 0/400 Matter 300/300 Energy 43/100 System Corruption 1% Temperature Cool (6) Movement Core (50) Location -9/Mines Parts ------- > --- POWER (1) -------- (None) > --- PROPULSION (3) --- (None) > --- UTILITY (3) ------ Signal Interpreter ECM Suite > --- WEAPON (2) ------- (None) > --- INVENTORY (5) ---- Improved Ion Engine Heat Sink Hardened Light Armor Plating Mining Laser Peak State ------------ > --- POWER ------------ Improved Ion Engine > --- PROPULSION ------- Improved Treads Improved Treads Improved Treads > --- UTILITY ---------- Large Storage Unit Structural Scanner Improved Targeting Computer > --- WEAPON ----------- Beam Rifle Scythe > --- INVENTORY -------- Light Treads Compact Wheel Compact Wheel Heat Sink Small Storage Unit Large Storage Unit High-capacity Matter Pod Signal Interpreter Terrain Scanner Seismic Detector Assault Rifle Light Assault Rifle EMP Blaster Welding Torch [Rating: 18] Favorites ----------- Power Improved Ion Engine Engine Improved Ion Engine Propulsion Improved Treads Treads Improved Treads Wheel Compact Wheel Hover Unit Airjet Utility Structural Scanner Device Structural Scanner Storage Large Storage Unit Processor Signal Interpreter Weapon Light Assault Rifle Energy Gun Beam Rifle Energy Cannon Advanced Beam Cannon Ballistic Gun Light Assault Rifle Launcher Grenade Launcher Special Weapon Welding Torch Slashing Weapon Scythe Build | -11 -10 -9 -9 ------- Run | Yrd Mat Mat Min Slots Evolved 2 | . . 2 . Power . | . . . . Propulsion 1 | . . 1 . Utility 1 | . . 1 . Weapon . | . . . . Parts Attached 50 | 7 10 32 1 Power 4 | 2 1 1 . Engine 4 | 2 1 1 . Core . | . . . . Reactor . | . . . . Propulsion 15 | 2 2 11 . Treads 6 | . . 6 . Leg . | . . . . Wheel 6 | 2 2 2 . Hover 3 | . . 3 . Flight . | . . . . Utility 16 | 1 3 12 . Device 11 | 1 1 9 . Storage 2 | . 2 . . Processor 3 | . . 3 . Hackware . | . . . . Protection . | . . . . Artifact . | . . . . Weapon 15 | 2 4 8 1 Energy Gun 4 | . . 3 1 Energy Cannon 1 | . . 1 . Ballistic Gun 6 | 2 1 3 . Ballistic Cannon . | . . . . Launcher 2 | . 2 . . Special Weapon 1 | . 1 . . Impact Weapon . | . . . . Slashing Weapon 1 | . . 1 . Piercing Weapon . | . . . . Special Melee Weapon . | . . . . Unidentified Prototypes 1 | . . 1 . Parts Lost 9 | . . 4 5 Power 1 | . . . 1 Propulsion 2 | . . 1 1 Utility 3 | . . 2 1 Weapon 3 | . . 1 2 Highest Loss Streak 4 | . . 3 4 To Critical Strikes . | . . . . Average Slot Usage (%) 88 | . 95 93 58 Engine 11 | . 14 11 10 Treads 10 | . . 14 . Wheel 5 | . 26 2 . Hover 7 | . . 10 . Device 17 | . 23 15 21 Storage 4 | . 1 6 . Processor 9 | . . 11 11 Energy Gun 6 | . . 8 4 Ballistic Gun 10 | . 23 7 10 Launcher 1 | . 4 1 . Slashing Weapon 2 | . . 3 . Naked Turns . | . . . . Heaviest Build 34 | 10 31 34 15 Greatest Support 69 | 20 32 69 8 Greatest Overweight (x) 3 | . 3 3 3 Average Overweight (x) . | . . . 2 Largest Inventory Capacity 15 | 5 15 15 5 Average Capacity 9 | 5 5 10 5 Most Carried 14 | 4 7 14 5 Average Carried 7 | 1 4 8 4 Final Capacity 15 | 5 15 5 5 Final Carried 7 | 3 7 5 4 Class Distribution -------------------- 71% | Mutant 28% | Infiltrator-Mutant Dominant Class ---------------- Mutant | -10/Materials Mutant | -9/Materials Infiltrator-Mutant | -9/Mines Resources | -11 -10 -9 -9 ----------- Run | Yrd Mat Mat Min Matter Collected 1072 | 290 76 700 6 Remotely . | . . . . Salvage Created 623 | 41 76 414 92 Parts 44 | 4 8 25 7 Haulers Intercepted . | . . . . Recyclers Shooed . | . . . . Parts Field Recycled . | . . . . Retrieved Matter . | . . . . Parts Self-Destructed . | . . . . Prevented . | . . . . Kills | -11 -10 -9 -9 ------- Run | Yrd Mat Mat Min Combat Hostiles Destroyed 15 | 1 4 8 2 Melee 3 | . . 3 . Guns 10 | 1 4 4 1 Cannons 1 | . . . 1 AOE 1 | . . 1 . Classes Destroyed 7 | 2 1 3 1 Tunneler 1 | 1 . . . Watcher 2 | . . 2 . Swarmer 3 | . 3 . . Grunt 6 | 1 1 3 1 Brawler 1 | . . 1 . Duelist 1 | . . . 1 Sentry 4 | . . 4 . Best Kill Streak 3 | 2 3 3 1 Combat Bots Only 3 | 1 3 3 1 Max Kills in Single Turn 2 | 1 1 2 1 Gunslinging . | . . . . Exploded 1 | . . 1 . Melee 1 | . . 1 . Uniques/NPCs Destroyed . | . . . . Combat | -11 -10 -9 -9 -------- Run | Yrd Mat Mat Min Hostile Shots Fired 124 | 7 11 60 46 Missed 34 | 1 4 15 14 Damage Taken 1472 | 66 65 826 515 Core 460 | 34 19 192 215 Absorbed by Shields . | . . . . Core Remaining (%) 82 | 86 78 . . Volleys Fired 65 | 5 12 31 17 Largest 2 | 2 2 2 2 Hottest 88 | 40 50 65 88 Shots Fired 112 | 10 24 51 27 Gun 100 | 10 23 45 22 Cannon 5 | . . . 5 Launcher 7 | . 1 6 . Special . | . . . . Kinetic 67 | 10 23 22 12 Thermal 26 | . . 11 15 Explosive 7 | . 1 6 . Electromagnetic 12 | . . 12 . Robot Hit Streak 13 | 3 5 13 8 Robot Miss Streak 4 | 1 2 4 4 Penetration Max . | . . . . Secondary Targets . | . . . . Shots Hit Robots 74 | 7 13 37 17 Core Hits 31 | 3 5 18 5 Critical Kills . | . . . . Critical Parts Destroyed . | . . . . Critical Strikes 2 | . . 2 . Burn 1 | . . 1 . Sever 1 | . . 1 . Melee Attacks 9 | . . 9 . Impact . | . . . . Slashing 9 | . . 9 . Piercing . | . . . . Sneak Attacks . | . . . . Combat Hostiles . | . . . . Follow-up Attacks . | . . . . Damage Inflicted 1070 | 95 148 626 201 Guns 721 | 95 148 343 135 Cannons 60 | . . . 60 Explosions 130 | . . 130 . Melee 144 | . . 144 . Ramming 15 | . . 9 6 Kinetic 457 | 95 148 134 80 Thermal 236 | . . 121 115 Explosive 98 | . . 98 . Electromagnetic 120 | . . 120 . Impact . | . . . . Slashing 144 | . . 144 . Piercing . | . . . . Highest Corruption 1 | . . . 1 Average Corruption 1 | . . . 1 Corruption Purged . | . . . . Corruption Blocked . | . . . . Effects 2 | . . . 2 Message Errors 1 | . . . 1 Misfires 1 | . . . 1 Overload Shots . | . . . . Overflow Damage 12 | . . 12 . Projectiles . | . . . . Explosions 12 | . . 12 . Melee . | . . . . Knockbacks . | . . . . Impact . | . . . . Kinetic . | . . . . Secondary . | . . . . Self-Inflicted Damage 7 | . . 4 3 Shots . | . . . . Rammed 3 | . . 2 1 Targets Rammed 3 | . . 2 1 Kicked . | . . . . Crushed . | . . . . Highest Temperature 122 | . . 122 76 Average Temperature 36 | . . 40 28 Received Heat Transfer 519 | 36 18 255 210 Siege Activations . | . . . . Robots Corrupted . | . . . . Combat Hostiles . | . . . . Parts Fried . | . . . . Impact Corruptions . | . . . . Robots Melted . | . . . . Combat Hostiles . | . . . . Parts Melted 1 | . . 1 . Heat Transferred 679 | . . 346 333 Parts Sabotaged . | . . . . Parts Stolen . | . . . . Parts Stripped . | . . . . Power Chain Reactions 1 | . . 1 . Alert | -11 -10 -9 -9 ------- Run | Yrd Mat Mat Min Peak Influence 181 | 25 173 181 55 Initial 72 | . 16 72 . Average 58 | 6 93 58 49 Maximum Alert Level . | . . . . Low Security (%) 100 | 100 100 100 100 Level 1 . | . . . . Level 2 . | . . . . Level 3 . | . . . . Level 4 . | . . . . Level 5 . | . . . . High Security . | . . . . Max Security . | . . . . Squads Dispatched 2 | . 1 1 . Investigation . | . . . . Extermination . | . . . . Reinforcement 2 | . 1 1 . Assault . | . . . . Garrison . | . . . . Intercept . | . . . . Searches Triggered . | . . . . Construction Impeded . | . . . . Haulers Reinforced . | . . . . Active Scanning Responses . | . . . . Cargo Convoy Interrupts . | . . . . Stealth | -11 -10 -9 -9 --------- Run | Yrd Mat Mat Min Distress Signals 3 | . . 3 . Communications Jammed . | . . . . Distress Signals . | . . . . Times Spotted 24 | 1 7 12 4 Peak Tracking Total 4 | 1 3 4 3 Tactical Retreats 1 | . 1 . . Traps | -11 -10 -9 -9 ------- Run | Yrd Mat Mat Min Traps Triggered 1 | . . 1 . Indirectly . | . . . . Trap Hack Attempts . | . . . . Triggered . | . . . . Disarmed . | . . . . Reprogrammed . | . . . . Reused . | . . . . Traps Extracted . | . . . . Installed . | . . . . Triggered . | . . . . Machines | -11 -10 -9 -9 ---------- Run | Yrd Mat Mat Min Machines Disabled . | . . . . Max in Single Turn . | . . . . Machines Repaired . | . . . . Machines Dismantled . | . . . . Machines Sabotaged . | . . . . Overloaded Fab Kills . | . . . . Hacking | -11 -10 -9 -9 --------- Run | Yrd Mat Mat Min Machines Accessed 9 | . 2 7 . Terminals 8 | . 2 6 . Fabricators . | . . . . Repair Stations 1 | . . 1 . Recycling Units . | . . . . Scanalyzers . | . . . . Garrison Access . | . . . . Total Hacks 25 | . 8 17 . Successful 11 | . 5 6 . Failed 14 | . 3 11 . Catastrophic 1 | . 1 . . Database Lockouts . | . . . . Manual . | . . . . Terminals 24 | . 8 16 . Fabricators . | . . . . Repair Stations 1 | . . 1 . Recycling Units . | . . . . Scanalyzers . | . . . . Garrison Access . | . . . . Terminal Hacks 10 | . 5 5 . Record 4 | . 3 1 . Emergency Access Points 1 | . 1 . . Alert Level 1 | . . 1 . Zone Layout 4 | . 1 3 . Fabricator Hacks . | . . . . Repair Station Hacks 1 | . . 1 . Refit 1 | . . 1 . Recycling Unit Hacks . | . . . . Scanalyzer . | . . . . Garrison Access Hacks . | . . . . Unauthorized Hacks . | . . . . Terminals . | . . . . Fabricators . | . . . . Repair Stations . | . . . . Recycling Units . | . . . . Scanalyzers . | . . . . Garrison Access . | . . . . Data Cores Recovered . | . . . . Used . | . . . . Hacking Detections 5 | . 2 3 . Full Trace Events . | . . . . Feedback Events . | . . . . Feedback Blocked . | . . . . Robot Schematics Acquired . | . . . . Robots Built . | . . . . Authchips . | . . . . Time . | . . . . Total Robot Build Rating . | . . . . Part Schematics Acquired . | . . . . Parts Built . | . . . . Authchips . | . . . . Time . | . . . . Total Part Build Rating . | . . . . Parts Repaired . | . . . . Time . | . . . . Parts Recycled . | . . . . Recycled Matter . | . . . . Retrieved Matter . | . . . . Retrieved Components . | . . . . Parts Scanalyzed . | . . . . Part Schematics Acquired . | . . . . Parts Damaged . | . . . . Bothacking | -11 -10 -9 -9 ------------ Run | Yrd Mat Mat Min Used RIF Installer . | . . . . Robots Hacked . | . . . . Non-combat . | . . . . Combat . | . . . . Robot Hacks Applied . | . . . . Relay Couplers Released . | . . . . Fabnet Peak Effective % . | . . . . Robots Rewired . | . . . . Allies Hacked . | . . . . Hacks Repelled . | . . . . Allies | -11 -10 -9 -9 -------- Run | Yrd Mat Mat Min Total Allies . | . . . . Largest Group . | . . . . Highest-Rated Group . | . . . . Highest-Rated Ally . | . . . . Total Orders . | . . . . Ally Attacks . | . . . . Total Damage . | . . . . Kills . | . . . . Allies Corrupted . | . . . . Allies Melted . | . . . . Intel | -11 -10 -9 -9 ------- Run | Yrd Mat Mat Min Robot Analysis Total . | . . . . Derelict Logs Recovered 2 | . . . 2 Drone Launches . | . . . . Drone Recoveries . | . . . . Exploration | -11 -10 -9 -9 ------------- Run | Yrd Mat Mat Min Turns Passed 2068 | 98 263 1409 298 Spaces Moved 1656 | 90 215 1226 125 Core 146 | 24 2 1 119 Treads 364 | . . 364 . Legs . | . . . . Wheels 418 | 66 213 139 . Hover 728 | . . 722 6 Flight . | . . . . Fastest Speed 50 | 50 80 52 120 Average Speed 98 | 72 93 90 196 Slowest Speed 240 | 80 200 240 200 Overloaded Moves . | . . . . Propulsion Burnouts . | . . . . Robots Hopped . | . . . . Cave-ins Triggered . | . . . . Exploration Rate (%) 30 | 6 29 66 21 Regions Visited 3 Branch Regions 1 Pre-discovered Areas 1 | . . . 1 Known Exits Taken 1 | . . 1 . Unknown Exits Taken 2 | 1 1 . . Scrap Searched . | . . . . Spaces Dug . | . . . . Terrain Destroyed 31 | . 7 24 . Melee . | . . . . Projectile . | . . . . AOE 31 | . 7 24 . Terrain Rammed . | . . . . Walls Destroyed . | . . . . Machines Disabled . | . . . . Actions | -11 -10 -9 -9 --------- Run | Yrd Mat Mat Min Total 1978 | 113 251 1461 153 Wait 111 | . . 102 9 Move 1653 | 89 214 1225 125 Hop . | . . . . Pick Up 51 | 10 10 31 . Fast Attach . | . . . . Attach 23 | 7 3 12 1 Detach 3 | 1 . 2 . Swap 27 | . 7 20 . Drop 33 | 1 5 27 . Fire 65 | 5 12 31 17 Melee 9 | . . 9 . Ram 3 | . . 2 1 Kick . | . . . . Crush . | . . . . Escape Stasis . | . . . . Rewire . | . . . . Trap . | . . . . Miscellaneous . | . . . . Route ------- -11/Scrapyard -10/Materials (discovered 2 exits: *Mat / [*Min]) -9/Materials (discovered 2 exits: *Mat / *Min) -9/Mines History --------- Turn | Location | Event 2 | -11/Scrapyard | Met Revision 17 60 | -11/Scrapyard | Discovered new exit (range 8) 99 | -11/Scrapyard | Entered Materials 133 | -10/Materials | Discovered new exit (range 13) 256 | -10/Materials | Discovered new exit (range 14) 306 | -10/Materials | Build established: Mutant 362 | -10/Materials | Entered another Materials area 362 | -9/Materials | Evolved 2 slots: Propulsion x1, Utility x1 1369 | -9/Materials | Discovered new exit (range 6) 1372 | -9/Materials | Identified exit to Materials 1494 | -9/Materials | Lost 3 parts (1n1u1w) 1762 | -9/Materials | Discovered new exit (range 7) 1765 | -9/Materials | Build established: Infiltrator-Mutant 1765 | -9/Materials | Identified exit to Mines 1771 | -9/Materials | Entered Mines 1777 | -9/Mines | Core integrity fell below 50% 1806 | -9/Mines | Met a Derelict bent on vengeance 1957 | -9/Mines | Learned Materials emergency access door positions 2063 | -9/Mines | Core integrity fell below 20% 2069 | -9/Mines | Destroyed by G-34 Mercenary with Small Laser Last Messages --------------- Acquired derelict log, extracted data. World map updated: -10/Materials. Slammed into U-05 Engineer. Destabilizing: System corrupted (+1). System corrupted: FCS attempts to trigger Backup Laser I. System corrupted: Backup Laser I misfires. Want a larger map view with more modal windows? Or have a large enough display to fit a bigger map in exchange for smaller text? Consider selecting a different UI Layout in the option menu. SCYXNDYX X%,BPPE2B TGLDBG/7ZM Imp. Ion Engine destroyed. Critical hit (Burn: +37). Structural Scanner destroyed. Lgt. Assault Rifle destroyed. Backup Laser I destroyed. D1-RBB(g): "VENGEANCE!" [Achievement: First Step to Greatness] Map ----- +----------------------------------------------------+ | ?????????????????????????????????????????????????? | | ?????????????????????????????????????????????????? | | ?????????????????????????????????????????????????? | | ?????????????????????????????????????????????????? | | ?????????????????????????????????????????????????? | | ?????????????????????????????????????????????????? | | ?????????????????????????????????????????????????? | | ???????????????????????????????????? ##?????????? | | ???????????????????????????????????? ##?????????? | | ??????????????????????????????????## ##?????????? | | ??????????????????????????????????## ##?????????? | | ??????????????????????????????????## ##?????????? | | ??????????????????????????????????## ##?????????? | | ??????????????????????????????????## ###????????? | | ??????????????????????????????????## ###????????? | | ??????????????????????????????????## ????????? | | ??????????????????????????????????## ###????????? | | ???????????????????????#####?????### ########???? | | ???????????# ????????########???### #######???# | | ???????????## ???????### ######### ???# | | ???????????### ####?## ####### ##????#### | | ????????????### ###?## ## ##????#### | | ?????????????## #### ## ###????## | | ?????????????## g ### ### ###?????## | | ?????????????### g g #### ########## | | ??????????????#### @ ####### ########## | | ???????????????#### ######## ### | | ????????????????#### #####???######### ### | | ?????????????????### ## ################## ### | | ??????????????????## ## #####??############# ### | | ????????????????? g####???## #### | | ????????????????? ##### ???????## % ######## | | ????????????????? ##### ???????## ####### # | | ?????????????????????## ???????## ##### ## | | ?????????????????????## ???????## ## | | ????????????????????? ???????##""" #### ## | | ????????????????????? ???????##""" %#### ## | | ?????????????????????## ???????##""" ]##### ## | | ?????????????????????## ???????## ###### ## | | ???????????????????????????????##### #####?### ## | | ???????????????????????????????##### #####??## ## | | ??????????????????????????????????## ##?????## | | ??????????????????????????????????## ##?????## ## | | ??????????????????????????????????## ##?????## ## | | ??????????????????????????????????## ##?????## ## | | ?????????????????????????????????? ##?????# ## | | ?????????????????????????????????? ####?????? ## | | ?????????????????????????????????? ####?????? # | | ?????????????????????????????????????????????""" ? | | ?????????????????????????????????????????????????? | +----------------------------------------------------+ Best States ------------- Heat Dissipation 38 Energy Generation 12 Energy Capacity 265 Matter Stores 300 Matter Capacity 300 Sight Range 18 Terrain Scan Range 14 Terrain Scan Density 10 ECM Strength 1 Evasion (%) 54 Targeting Accuracy 6 Recoil Reduction 3 Item Schematics ----------------- None Robot Schematics ------------------ None Fabricated ------------ Nothing Alien Tech Used ----------------- None Achievements -------------- Crack Shot First Step to Greatness Oops Challenges ------------ None Game ------ Seed KineticLightStreamer Manual? 0 Play Time 00:51:22 Cumulative 1.8 hours Start 2024.07.06 @ 19:26:59 End 2024.07.06 @ 20:19:03 Sessions 1 Manual Loads 0 Difficulty Rogue Special Mode None Game No. 2 Rogue 2 Adventurer 0 Explorer 0 Win Type - Total 0 Types 0/0/0/0/0/0/0/0/0 Lore% 1 Gallery% 3 Achievement% 3 Wizard Run 0 Options --------- Layout 1 ASCII 0 Keyboard 0 Movement Arrows Keybinds 0 Fullscreen 1 Font 28/Dina Map View 50x43 Zoom Use 0% Tactical HUD 0 Map Filters NONE Filters NONE Steam 1 RUN: 4b4cbb93-15a2-4870-a320-25b108c9e0ca